bitfinex-derivatives/quotes_BTCF0:USTF0_20240824
["timestamp","ask_amount","ask_price","bid_price","bid_amount"]
[1724540751806,0.00023482,63918.0,63917.0,0.10267296]
[1724540752216,0.00023482,63918.0,63917.0,0.10367296]
[1724540752412,0.06266348,63918.0,63917.0,0.10467296]
[1724540753513,0.00023482,63918.0,63917.0,0.10467296]
[1724540755211,0.00023482,63918.0,63917.0,0.08023]
[1724540755517,0.00023482,63918.0,63917.0,0.10467267]
[1724540755814,0.00023482,63918.0,63917.0,0.08023]
[1724540756204,0.00023482,63918.0,63917.0,0.10467267]
[1724540758820,0.00023482,63918.0,63917.0,0.08023]
[1724540759113,0.00023482,63918.0,63917.0,0.20467267]
[1724540759114,1.23039482,63918.0,63917.0,0.20467267]
[1724540759319,0.36103482,63918.0,63917.0,0.20467267]
[1724540759512,0.38638198,63918.0,63917.0,0.18023]
[1724540760212,0.38638198,63918.0,63917.0,0.2046758]
[1724540761214,0.38638198,63918.0,63917.0,0.18023]
[1724540761428,0.38638198,63918.0,63917.0,0.2046757]
[1724540763311,0.43913655,63918.0,63917.0,0.2046757]
[1724540764030,0.43913655,63918.0,63917.0,0.18023]
[1724540764224,0.00023482,63918.0,63917.0,0.20467419]
[1724540764424,0.07833655,63918.0,63917.0,0.20467419]
[1724540765324,0.07836585,63918.0,63917.0,0.10204]
[1724540765523,0.07836585,63918.0,63917.0,0.02648377]
[1724540765524,0.02558062,63918.0,63917.0,0.02648377]
[1724540765828,0.078196,63913.0,63911.0,0.04683608]
[1724540766019,0.0454,63912.0,63910.0,0.0972527]
[1724540766322,0.1235531,63912.0,63910.0,0.0963727]
[1724540766523,0.4389531,63911.0,63910.0,0.04953662]
[1724540766727,0.36084,63911.0,63910.0,0.04953662]
[1724540767322,0.4389709,63911.0,63910.0,0.04953662]
[1724540767828,0.36084,63911.0,63910.0,0.04953662]
[1724540768324,0.43895999,63911.0,63910.0,0.04953662]
[1724540768722,0.6482243,63911.0,63910.0,0.04953662]
[1724540769923,0.6482243,63911.0,63910.0,0.12773562]
[1724540770722,0.57010431,63911.0,63910.0,0.12773562]
[1724540770927,0.6482243,63911.0,63910.0,0.12773562]
[1724540771425,0.57010431,63911.0,63910.0,0.12773562]
[1724540773423,0.20930431,63911.0,63910.0,0.12773562]
[1724540774134,0.20930431,63911.0,63910.0,0.1745717]
[1724540774341,0.20930431,63911.0,63910.0,0.12773562]
[1724540775326,0.20930431,63911.0,63910.0,0.14728992]
[1724540775533,0.20930431,63911.0,63910.0,0.20971032]
[1724540775724,0.20930431,63911.0,63910.0,0.14728992]
[1724540775924,0.20930431,63911.0,63910.0,0.20971032]
[1724540776125,0.20930431,63911.0,63910.0,0.14728992]
[1724540776645,0.20930431,63911.0,63910.0,0.20971032]
[1724540777545,0.20930431,63911.0,63910.0,0.14728992]
[1724540777746,0.20930431,63911.0,63910.0,0.17173238]
[1724540780150,0.04684364,63914.0,63910.0,1.04113238]
[1724540780451,0.00023482,63918.0,63909.0,0.3608]
[1724540780452,0.04683658,63916.0,63915.0,0.078193]
[1724540780647,0.04683658,63917.0,63916.0,0.078191]
[1724540780841,0.04683658,63917.0,63916.0,0.12218776]
[1724540781143,0.00023482,63918.0,63917.0,0.07819]
[1724540781345,0.0470714,63918.0,63917.0,0.12218676]
[1724540781659,0.0470714,63918.0,63917.0,0.24374586]
[1724540781852,0.0470714,63918.0,63917.0,0.24378586]
[1724540782451,0.00023482,63918.0,63917.0,0.24378586]
[1724540783154,0.00123482,63918.0,63917.0,0.24478586]
[1724540783643,0.00123482,63918.0,63917.0,0.24578586]
[1724540784155,0.00123482,63918.0,63917.0,0.22134315]
[1724540784345,0.00123482,63918.0,63917.0,0.24578459]
[1724540784551,0.00123482,63918.0,63917.0,0.20179]
[1724540784746,0.00123482,63918.0,63917.0,0.22623142]
[1724540785157,0.00123482,63918.0,63917.0,0.22623087]
[1724540786051,0.00123482,63918.0,63917.0,0.7775178]
[1724540787556,0.00123482,63918.0,63917.0,0.7775154]
[1724540787848,0.00123482,63918.0,63917.0,1.1383154]
[1724540789254,0.00123482,63918.0,63917.0,1.0759416]
[1724540790354,0.00123482,63918.0,63917.0,1.1383154]
[1724540790747,0.04683658,63925.0,63924.0,0.078182]
[1724540790949,0.04683658,63925.0,63924.0,0.20262178]
[1724540791354,0.04683658,63926.0,63925.0,0.07818]
[1724540791555,0.04683658,63926.0,63925.0,0.20261978]
[1724540792057,0.04683658,63926.0,63925.0,0.20265978]
[1724540793253,0.04683658,63926.0,63925.0,0.32417978]
[1724540794056,0.04683658,63926.0,63925.0,0.32517978]
[1724540794252,0.04683658,63926.0,63925.0,0.30074]
[1724540794462,0.04683658,63926.0,63925.0,0.32517926]
[1724540794761,0.04683658,63926.0,63925.0,0.32617926]
[1724540796155,0.04683658,63927.0,63926.0,0.078179]
[1724540796463,0.04675516,63927.0,63926.0,0.20261826]
[1724540796867,0.04675516,63927.0,63926.0,0.20265826]
[1724540797363,0.06246138,63930.0,63927.0,0.078178]
[1724540797560,0.06246138,63930.0,63929.0,0.1]
[1724540797760,0.06246138,63930.0,63929.0,0.12443926]
[1724540798156,0.06246138,63930.0,63929.0,0.12447926]
[1724540798657,0.06246138,63930.0,63929.0,0.12547926]
[1724540799362,0.36095512,63932.0,63929.0,0.12547926]
[1724540799564,0.36095512,63932.0,63929.0,0.10204]
[1724540799759,0.06236662,63930.0,63929.0,0.180215]
[1724540799960,0.36095512,63932.0,63929.0,0.20465424]
[1724540800154,0.36095512,63932.0,63929.0,0.180215]
[1724540800565,0.36095512,63932.0,63930.0,0.078174]
[1724540800759,0.36095512,63932.0,63931.0,4e-05]
[1724540801569,0.36095512,63932.0,63931.0,0.078213]
[1724540802255,0.43907511,63932.0,63931.0,0.078213]
[1724540802460,0.43907511,63932.0,63931.0,0.079213]
[1724540802755,0.36095512,63932.0,63931.0,0.10365224]
[1724540803167,0.36095512,63932.0,63931.0,0.10465224]
[1724540806668,0.00015512,63932.0,63931.0,0.10465224]
[1724540807257,0.07827511,63932.0,63931.0,0.10465224]
[1724540809466,0.00015512,63932.0,63931.0,0.10465224]
[1724540809767,0.00015512,63932.0,63931.0,0.080213]
[1724540809964,0.00015512,63932.0,63931.0,0.10465119]
[1724540810869,0.07828191,63932.0,63931.0,0.15137589]
[1724540812365,0.02549508,63932.0,63931.0,0.10465119]
[1724540812568,0.00015512,63932.0,63931.0,0.10465119]
[1724540815070,0.00015512,63932.0,63931.0,0.15137589]
[1724540816271,0.00015512,63932.0,63931.0,0.15137577]
[1724540819278,0.00015512,63932.0,63931.0,0.1269377]
[1724540819581,0.00015512,63932.0,63931.0,0.15137577]
[1724540820673,0.02549495,63932.0,63931.0,0.15137577]
[1724540821070,0.00015512,63932.0,63931.0,0.15137577]
[1724540823079,0.00015512,63932.0,63931.0,0.10465107]
[1724540823575,0.00015512,63932.0,63931.0,0.12420144]
[1724540823981,0.00015512,63932.0,63931.0,0.080213]
[1724540824183,0.00015512,63932.0,63931.0,0.10465096]
[1724540825876,0.00015512,63932.0,63931.0,0.15152118]
[1724540826073,0.07831218,63932.0,63931.0,0.10465096]
[1724540826275,0.07831218,63932.0,63931.0,0.12420092]
[1724540827082,0.07831218,63932.0,63931.0,0.15150576]
[1724540827083,0.00015512,63932.0,63931.0,0.15150576]
[1724540827578,0.00015512,63932.0,63931.0,0.15150515]
[1724540828991,0.07831218,63932.0,63931.0,0.10465035]
[1724540829174,0.00015512,63932.0,63931.0,0.18657405]
[1724540829378,0.00015512,63932.0,63931.0,0.12420025]
[1724540830177,0.00015512,63932.0,63931.0,0.18665384]
[1724540830582,0.00015512,63932.0,63931.0,0.12420025]
[1724540831086,0.00015512,63932.0,63931.0,0.080213]
[1724540831281,0.00015512,63932.0,63931.0,0.09976192]
[1724540831785,0.00015512,63932.0,63931.0,0.12419807]
[1724540833787,0.00015512,63932.0,63931.0,0.10464905]
[1724540834086,0.00015512,63932.0,63931.0,0.12419789]
[1724540835190,0.00015512,63932.0,63931.0,0.48499789]
[1724540836786,0.00015512,63932.0,63931.0,0.46056184]
[1724540836984,0.00015512,63932.0,63931.0,0.48499789]
[1724540838587,0.00015512,63932.0,63931.0,0.46056184]
[1724540838785,0.00015512,63932.0,63931.0,0.48499789]
[1724540839583,0.00015512,63932.0,63931.0,0.46544908]
[1724540840095,0.00015512,63932.0,63931.0,0.54744354]
[1724540840586,0.00015512,63932.0,63931.0,0.5034586]
[1724540840788,0.00015512,63932.0,63931.0,0.5474436]
[1724540841186,0.00015512,63932.0,63931.0,0.56699249]
[1724540841586,0.00015512,63932.0,63931.0,0.54255638]
[1724540841789,0.00015512,63932.0,63931.0,0.56699249]
[1724540843093,0.00015512,63932.0,63931.0,0.20619249]
[1724540843284,0.00015512,63932.0,63931.0,0.56699249]
[1724540843484,0.00015512,63932.0,63931.0,0.5474436]
[1724540843684,0.00015512,63932.0,63931.0,0.56699249]
[1724540844194,0.00015512,63932.0,63931.0,0.20619249]
[1724540844392,0.00015512,63932.0,63931.0,0.56699249]
[1724540845396,0.00015512,63932.0,63931.0,0.66699249]
[1724540846790,0.00015512,63932.0,63931.0,0.66699265]
[1724540848190,0.00015512,63932.0,63931.0,0.64744376]
[1724540848698,0.00015512,63932.0,63931.0,0.28664376]
[1724540848899,0.00015512,63932.0,63931.0,0.64744376]
[1724540850192,0.00015512,63932.0,63931.0,0.58499816]
[1724540852395,0.06266345,63932.0,63931.0,0.58499816]
[1724540852593,0.00015512,63932.0,63931.0,0.64746954]
[1724540853905,0.00015512,63932.0,63931.0,0.28666954]
[1724540854295,0.00015512,63932.0,63931.0,0.64746954]
[1724540854697,0.00015512,63932.0,63931.0,0.28666954]
[1724540854898,0.00015512,63932.0,63931.0,0.64746954]
[1724540855098,0.00015512,63932.0,63931.0,0.58499816]
[1724540855700,0.00015512,63932.0,63931.0,0.22419816]
[1724540855907,0.00015512,63932.0,63931.0,0.541013]
[1724540856202,0.00015512,63932.0,63931.0,0.58499814]
[1724540856506,0.00015512,63932.0,63931.0,0.64750949]
[1724540857101,0.00015512,63932.0,63931.0,0.28670949]
[1724540857409,0.00015512,63932.0,63931.0,0.22419814]
[1724540860102,0.00015512,63932.0,63931.0,0.28668233]
[1724540861619,0.00015512,63932.0,63931.0,0.10850933]
[1724540861909,0.00015512,63932.0,63925.0,0.00802347]
[1724540861910,0.46928,63931.0,63926.0,0.14688349]
[1724540862213,0.07814216,63929.0,63928.0,0.3608]
[1724540862408,0.07813757,63930.0,63929.0,0.078175]
[1724540862718,0.07813757,63931.0,63929.0,0.24949826]
[1724540862913,0.07813757,63931.0,63930.0,0.02443977]
[1724540863300,0.07813216,63931.0,63930.0,0.02443977]
[1724540864014,0.07913216,63931.0,63930.0,0.02543977]
[1724540864711,0.07913216,63931.0,63930.0,0.12543977]
[1724540864909,0.02634015,63931.0,63930.0,0.12643977]
[1724540867216,0.001,63931.0,63930.0,0.12643977]
[1724540867609,0.02633997,63931.0,63930.0,0.12643977]
[1724540867805,0.02633997,63931.0,63930.0,0.20461377]
[1724540868215,0.02633997,63931.0,63930.0,0.180174]
[1724540868620,0.02633997,63931.0,63930.0,0.20461271]
[1724540868621,0.001,63931.0,63930.0,0.20461271]
[1724540868920,0.001,63931.0,63930.0,0.22905122]
[1724540869127,0.0791069,63931.0,63930.0,0.22905122]
[1724540869314,0.001,63931.0,63930.0,0.20461251]
[1724540870014,0.07910635,63931.0,63930.0,0.20461251]
[1724540870209,0.07910635,63931.0,63930.0,0.20461219]
[1724540870417,0.001,63931.0,63930.0,0.20461219]
[1724540872520,0.02634067,63931.0,63930.0,0.20461219]
[1724540872714,0.001,63931.0,63930.0,0.20461219]
[1724540873415,0.02634061,63931.0,63930.0,0.20461219]
[1724540874217,0.001,63931.0,63930.0,0.20461219]
[1724540875916,0.02634059,63931.0,63930.0,0.20461219]
[1724540876323,0.02634059,63931.0,63930.0,0.10461219]
[1724540876623,1.14224478,63931.0,63924.0,0.37023458]
[1724540876815,0.07809505,63926.0,63925.0,0.02444026]
[1724540877211,0.07809505,63926.0,63925.0,0.10262026]
[1724540878122,0.07809505,63927.0,63926.0,0.078179]
[1724540878417,0.07809505,63927.0,63926.0,0.20261926]
[1724540878622,0.07809505,63927.0,63926.0,0.20261959]
[1724540878927,0.07809505,63927.0,63926.0,0.20265959]
[1724540879221,0.08009505,63927.0,63926.0,0.20265959]
[1724540880118,0.08309505,63927.0,63926.0,0.20265959]
[1724540883521,0.005,63927.0,63926.0,0.20265959]
[1724540883716,0.005,63927.0,63926.0,0.2026588]
[1724540884121,0.005,63927.0,63926.0,0.178219]
[1724540884329,0.005,63927.0,63926.0,0.20265855]
[1724540884827,0.005,63927.0,63926.0,0.30065855]
[1724540886828,0.005,63927.0,63926.0,0.30065779]
[1724540889324,0.005,63927.0,63926.0,0.34754128]
[1724540889527,0.005,63927.0,63926.0,0.30065779]
[1724540890030,0.005,63927.0,63926.0,0.34754133]
[1724540891926,0.005,63927.0,63926.0,0.30065784]
[1724540894229,0.005,63927.0,63926.0,0.3474826]
[1724540894424,0.08309505,63927.0,63926.0,0.30065784]
[1724540895727,0.08309505,63927.0,63926.0,0.276219]
[1724540895928,0.005,63927.0,63926.0,0.30065817]
[1724540896135,0.08309505,63927.0,63926.0,0.30065817]
[1724540896431,0.005,63927.0,63926.0,0.3474829]
[1724540897138,0.08309505,63927.0,63926.0,0.30065814]
[1724540897936,0.005,63927.0,63926.0,0.3474829]
[1724540898945,0.005,63927.0,63926.0,0.32304376]
[1724540899241,0.005,63927.0,63926.0,0.3475139]
[1724540899535,0.005,63927.0,63926.0,0.30065763]
[1724540899733,0.005,63927.0,63926.0,0.36316895]
[1724540899931,0.005,63927.0,63926.0,0.30065763]
[1724540900538,0.005,63927.0,63926.0,0.36316895]
[1724540900839,0.005,63927.0,63926.0,0.30065763]
[1724540902037,0.005,63927.0,63926.0,0.30065751]
[1724540902734,0.005,63927.0,63926.0,0.38271909]
[1724540902936,0.06750958,63927.0,63926.0,0.38271909]
[1724540903139,0.06750958,63927.0,63926.0,0.38271885]
[1724540904838,0.005,63927.0,63926.0,0.32020753]
[1724540905033,0.005,63927.0,63926.0,0.30065716]
[1724540905240,0.005,63927.0,63926.0,0.32020769]
[1724540905446,0.005,63927.0,63926.0,0.32020768]
[1724540906730,0.005,63927.0,63926.0,0.68100768]
[1724540911247,0.005,63927.0,63926.0,0.637019]
[1724540911540,0.005,63927.0,63926.0,0.68100571]
[1724540912738,0.05187084,63927.0,63926.0,0.68100571]
[1724540913942,0.05187211,63927.0,63926.0,0.68100571]
[1724540914335,0.005,63927.0,63926.0,0.68100571]
[1724540914539,0.005,63927.0,63926.0,0.66145576]
[1724540915043,0.005,63927.0,63926.0,0.66145586]
[1724540915238,0.005,63927.0,63926.0,0.68100535]
[1724540915439,0.005,63927.0,63926.0,0.66145583]
[1724540915749,0.005,63927.0,63926.0,0.68100529]
[1724540917241,0.06250444,63929.0,63928.0,0.078176]
[1724540917446,0.06250444,63931.0,63930.0,0.078174]
[1724540917640,0.06250444,63931.0,63930.0,0.22216029]
[1724540917947,0.06250444,63931.0,63930.0,0.2221589]
[1724540918352,0.06250444,63931.0,63930.0,0.2221989]
[1724540918939,0.06450444,63931.0,63930.0,0.2231989]
[1724540919139,0.06650444,63931.0,63930.0,0.28662397]
[1724540919442,0.004,63931.0,63930.0,0.28662397]
[1724540919647,0.004,63931.0,63930.0,0.5849989]
[1724540920043,0.05086185,63931.0,63930.0,0.5849989]
[1724540921144,0.004,63931.0,63930.0,0.60943013]
[1724540924441,0.004,63931.0,63930.0,0.58499594]
[1724540924647,0.004,63931.0,63930.0,0.60943046]
[1724540925547,0.004,63931.0,63930.0,0.68760446]
[1724540927158,0.004,63931.0,63930.0,0.68760346]
[1724540929152,0.004,63931.0,63930.0,0.7412744]
[1724540929458,0.004,63931.0,63930.0,1.1020744]
[1724540929654,0.004,63931.0,63930.0,1.18190447]
[1724540930261,0.004,63931.0,63930.0,1.1020744]
[1724540930451,0.004,63931.0,63930.0,1.18189134]
[1724540930656,0.004,63931.0,63930.0,1.1020744]
[1724540931156,0.04686185,63937.0,63931.0,0.078172]
[1724540931356,0.06250444,63941.0,63937.0,0.078165]
[1724540931357,0.04686185,63938.0,63937.0,0.078165]
[1724540931565,0.04686185,63938.0,63937.0,0.37099897]
[1724540931956,0.04681948,63942.0,63937.0,1.41609567]
[1724540932159,0.00132,63948.0,63943.0,0.078158]
[1724540932160,0.04681948,63944.0,63943.0,0.078158]
[1724540932362,0.04681948,63946.0,63945.0,0.078155]
[1724540932659,0.04681948,63946.0,63945.0,0.2492935]
[1724540932864,0.04681948,63946.0,63945.0,0.3700935]
[1724540933163,0.06250444,63949.0,63948.0,0.078152]
[1724540933363,0.06250444,63950.0,63949.0,0.07815]
[1724540933556,0.06250444,63950.0,63949.0,0.20258001]
[1724540934165,0.06250444,63950.0,63949.0,0.20262001]
[1724540934356,0.0944,63958.0,63950.0,0.078149]
[1724540934357,0.06250444,63951.0,63950.0,0.078149]
[1724540934561,0.06250444,63951.0,63950.0,0.20257901]
[1724540935257,0.06250444,63952.0,63951.0,0.078148]
[1724540935560,0.06250444,63952.0,63951.0,0.20257801]
[1724540935759,0.07809505,63957.0,63951.0,0.20257801]
[1724540935760,0.07809505,63957.0,63954.0,0.078144]
[1724540935968,0.07809505,63957.0,63956.0,0.1]
[1724540936565,0.07809505,63957.0,63956.0,0.10004]
[1724540936757,0.0944,63958.0,63956.0,4e-05]
[1724540936758,0.17249505,63958.0,63956.0,4e-05]
[1724540937059,0.078144,63955.0,63950.0,0.001]
[1724540937261,0.1,63951.0,63950.0,0.001]
[1724540937459,0.1,63951.0,63947.0,0.078153]
[1724540937655,0.10805397,63950.0,63947.0,0.078153]
[1724540938157,0.10004,63948.0,63947.0,0.00930593]
[1724540938462,4e-05,63948.0,63946.0,0.078154]
[1724540938666,0.0925,63947.0,63946.0,0.078154]
[1724540939262,0.09254,63947.0,63946.0,0.078154]
[1724540939458,0.09254,63947.0,63946.0,0.079154]
[1724540940566,0.09254,63947.0,63946.0,0.0887473]
[1724540941555,0.09254,63947.0,63946.0,0.0897473]
[1724540941968,0.09254,63947.0,63946.0,0.11418035]
[1724540942168,0.09254,63947.0,63946.0,0.0897473]
[1724540942754,0.09254,63947.0,63946.0,0.11418035]
[1724540944463,0.09254,63947.0,63946.0,0.0897473]
[1724540944662,0.09254,63947.0,63946.0,0.11417978]
[1724540944860,0.09254,63947.0,63946.0,0.0897473]
[1724540945065,0.09254,63947.0,63946.0,0.11417958]
[1724540947174,4e-05,63947.0,63946.0,0.11417958]
[1724540947865,4e-05,63947.0,63946.0,0.0897473]
[1724540948169,4e-05,63947.0,63946.0,0.11417918]
[1724540949066,0.06244723,63947.0,63946.0,0.11417918]
[1724540949268,4e-05,63947.0,63946.0,0.11417918]
[1724540949567,0.06245316,63947.0,63946.0,0.11417918]
[1724540951460,0.06245316,63947.0,63946.0,0.11417854]
[1724540952073,4e-05,63947.0,63946.0,0.11417854]
[1724540959368,4e-05,63947.0,63946.0,0.16088307]
[1724540959966,4e-05,63947.0,63946.0,0.16088345]
[1724540960781,4e-05,63947.0,63946.0,0.11417892]
[1724540961370,0.07798627,63947.0,63946.0,0.11417892]
[1724540962174,4e-05,63947.0,63946.0,0.16088345]
[1724540962371,0.07798627,63947.0,63946.0,0.16088345]
[1724540962570,4e-05,63947.0,63946.0,0.11417892]
[1724540963072,4e-05,63947.0,63946.0,0.11417945]
[1724540966877,0.10004,63947.0,63946.0,0.03602545]
[1724540967073,0.078155,63946.0,63943.0,0.00023464]
[1724540967273,0.11911065,63946.0,63945.0,0.078155]
[1724540968080,0.0253337,63946.0,63945.0,0.078155]
[1724540968278,0.09377695,63946.0,63945.0,0.078155]
[1724540968579,0.0253337,63946.0,63945.0,0.078155]
[1724540968885,0.0253337,63946.0,63945.0,0.079155]
[1724540969072,0.02533418,63946.0,63945.0,0.080155]
[1724540969380,4e-05,63947.0,63945.0,0.080155]
[1724540969381,0.09381695,63947.0,63945.0,0.080155]
[1724540969679,4e-05,63947.0,63946.0,0.078154]
[1724540970884,0.00104,63947.0,63946.0,0.079154]
[1724540971082,1.45011137,63947.0,63946.0,0.001]
[1724540971284,1.35633442,63947.0,63946.0,0.001]
[1724540971484,0.078159,63942.0,63938.0,0.078164]
[1724540971677,0.27190766,63942.0,63940.0,0.078161]
[1724540971879,0.02533442,63941.0,63940.0,0.078161]
[1724540973589,0.02633442,63941.0,63940.0,0.079161]
[1724540973782,0.02633711,63941.0,63940.0,0.079161]
[1724540973981,0.10449711,63941.0,63940.0,0.079161]
[1724540974178,0.19824577,63941.0,63940.0,0.079161]
[1724540974387,0.10449711,63941.0,63940.0,0.079161]
[1724540974691,0.19824577,63941.0,63940.0,0.079161]
[1724540974883,0.19824577,63941.0,63940.0,0.001]
[1724540975589,0.10449711,63941.0,63940.0,0.001]
[1724540975991,0.1139341,63941.0,63940.0,0.001]
[1724540977185,0.20768276,63941.0,63940.0,0.001]
[1724540977397,0.1139341,63941.0,63940.0,0.001]
[1724540977893,0.4747341,63941.0,63940.0,0.001]
[1724540978089,0.1139341,63941.0,63940.0,0.001]
[1724540978290,0.4747341,63941.0,63940.0,0.001]
[1724540980091,0.46529711,63941.0,63940.0,0.001]
[1724540980493,0.43996,63941.0,63940.0,0.001]
[1724540980890,0.07916,63941.0,63940.0,0.001]
[1724540982499,0.15716594,63941.0,63940.0,0.001]
[1724540986299,0.15716594,63941.0,63940.0,0.079161]
[1724540989399,0.15718491,63941.0,63940.0,0.079161]
[1724540989601,0.07902491,63941.0,63940.0,0.079161]
[1724540990492,0.001,63941.0,63940.0,0.079161]
[1724540990698,0.07903196,63941.0,63940.0,0.079161]
[1724540991391,0.001,63941.0,63940.0,0.079161]
[1724540991596,0.001,63941.0,63940.0,0.179161]
[1724540992706,0.02633721,63941.0,63940.0,0.179161]
[1724540993602,0.02633721,63941.0,63940.0,0.079161]
[1724540995803,0.001,63941.0,63940.0,0.079161]
[1724540996008,0.0790822,63941.0,63940.0,0.10359513]
[1724540996512,0.0516715,63941.0,63940.0,0.10359513]
[1724540996808,0.0516715,63941.0,63940.0,0.079161]
[1724540997102,0.0516715,63941.0,63940.0,0.10359507]
[1724540998809,0.10444487,63941.0,63940.0,0.20359507]
[1724540999008,0.05167129,63941.0,63940.0,0.20359507]
[1724540999502,0.05167129,63941.0,63940.0,0.179161]
[1724540999705,0.05167129,63941.0,63940.0,0.20359483]
[1724541001406,0.05167123,63941.0,63940.0,0.20359483]
[1724541003710,0.02633548,63941.0,63940.0,0.20359483]
[1724541004709,0.02633548,63941.0,63940.0,0.20359468]
[1724541004907,0.02633548,63941.0,63940.0,0.179161]
[1724541005102,0.001,63941.0,63940.0,0.179161]
[1724541005303,0.001,63941.0,63940.0,0.20359468]
[1724541005707,0.02633528,63941.0,63940.0,0.20359468]
[1724541006012,0.001,63941.0,63940.0,0.20359468]
[1724541007712,0.001,63941.0,63940.0,0.20359462]
[1724541008501,0.02633522,63941.0,63940.0,0.20359462]
[1724541008706,0.001,63941.0,63940.0,0.20359462]
[1724541010511,0.001,63941.0,63940.0,0.179161]
[1724541010714,0.001,63941.0,63940.0,0.20359462]
[1724541011513,0.001,63941.0,63940.0,0.10359462]
[1724541011814,0.001,63941.0,63940.0,0.079161]
[1724541011815,0.02633618,63941.0,63940.0,0.079161]
[1724541012211,0.12633618,63941.0,63940.0,0.001]
[1724541012416,0.22008484,63941.0,63940.0,0.001]
[1724541012603,0.02633618,63941.0,63940.0,0.001]
[1724541014409,0.02633618,63941.0,63940.0,0.101]
[1724541014812,0.02633618,63941.0,63940.0,0.12543394]
[1724541016409,0.001,63941.0,63940.0,0.12543394]
[1724541016711,0.02633599,63941.0,63940.0,0.101]
[1724541017823,0.02633599,63941.0,63940.0,0.179161]
[1724541019021,0.001,63941.0,63940.0,0.19870795]
[1724541020211,0.001,63941.0,63940.0,0.66790795]
[1724541020212,0.06350496,63941.0,63940.0,0.66790795]
[1724541020509,0.00027402,63947.0,63946.0,0.078154]
[1724541020713,0.02560696,63947.0,63946.0,0.438954]
[1724541020915,0.00027402,63947.0,63946.0,0.483954]
[1724541021315,0.07838578,63947.0,63946.0,0.483994]
[1724541021727,0.00127402,63947.0,63946.0,0.484994]
[1724541022419,0.00127402,63947.0,63946.0,0.53170855]
[1724541022825,0.00127402,63947.0,63946.0,0.53270855]
[1724541023214,0.00127402,63947.0,63946.0,0.485994]
[1724541023921,0.00127402,63947.0,63946.0,0.51042513]
[1724541025421,0.00127402,63947.0,63946.0,0.51965734]
[1724541026026,0.00127402,63947.0,63946.0,0.51965714]
[1724541027125,0.00127402,63947.0,63946.0,0.15885714]
[1724541027328,0.00127402,63947.0,63946.0,0.51965714]
[1724541028230,0.048093,63947.0,63946.0,0.56637169]
[1724541029126,0.048093,63947.0,63946.0,0.53920088]
[1724541029127,0.00127402,63947.0,63946.0,0.53920088]
[1724541030132,0.00127402,63947.0,63946.0,0.585791]
[1724541031820,0.00127402,63947.0,63946.0,0.58578998]
[1724541032221,0.04807149,63947.0,63946.0,0.56624614]
[1724541032423,0.04807149,63947.0,63946.0,0.58578998]
[1724541033430,0.04807149,63947.0,63946.0,0.22498998]
[1724541033629,0.04807149,63947.0,63946.0,0.58578998]
[1724541034334,0.04807149,63947.0,63946.0,0.22498998]
[1724541034530,0.04807149,63947.0,63946.0,0.58578998]
[1724541034924,0.04807149,63947.0,63946.0,0.22498998]
[1724541035125,0.04807149,63947.0,63946.0,0.56624614]
[1724541035333,0.04807149,63947.0,63946.0,0.58578998]
[1724541035526,0.04807149,63947.0,63946.0,0.53919986]
[1724541035527,0.00127402,63947.0,63946.0,0.53919986]
[1724541037931,0.00127402,63947.0,63946.0,0.53919915]
[1724541038933,0.04679747,63952.0,63951.0,0.078148]
[1724541039124,0.04679747,63952.0,63951.0,0.178148]
[1724541039931,0.04679747,63952.0,63951.0,0.178188]
[1724541040329,0.04679747,63952.0,63951.0,0.179188]
[1724541041128,0.04679747,63952.0,63951.0,0.20361704]
[1724541041537,0.04679747,63952.0,63951.0,0.179188]
[1724541041736,0.04679747,63952.0,63951.0,0.20461714]
[1724541044132,0.07811176,63959.0,63951.0,0.12646914]
[1724541044331,0.07811176,63959.0,63958.0,0.1]
[1724541044527,0.3608,63960.0,63958.0,0.1]
[1724541044734,0.07798978,63959.0,63958.0,0.1]
[1724541045331,0.3608,63960.0,63958.0,0.1]
[1724541045533,0.3608,63960.0,63958.0,0.101]
[1724541046134,0.02529048,63959.0,63958.0,0.102]
[1724541046635,0.02529048,63959.0,63958.0,0.180139]
[1724541046832,0.3608,63960.0,63959.0,0.078138]
[1724541048641,0.09470866,63963.0,63959.0,0.078138]
[1724541048831,0.09470866,63963.0,63960.0,0.078137]
[1724541049234,0.09374866,63962.0,63960.0,0.078137]
[1724541049439,0.09370866,63962.0,63961.0,0.178136]
[1724541050148,0.00096,63963.0,63962.0,0.078134]
[1724541050637,0.538931,63965.0,63963.0,0.077133]
[1724541050831,0.16102149,63964.0,63963.0,0.077133]
[1724541051840,0.16102149,63964.0,63963.0,0.078133]
[1724541053339,0.16102149,63964.0,63963.0,0.079133]
[1724541053847,0.0917,63964.0,63963.0,0.079133]
[1724541054438,0.0463,63964.0,63963.0,0.079133]
[1724541055638,0.0463,63964.0,63963.0,0.079173]
[1724541060639,0.078131,63965.0,63964.0,0.078132]
[1724541061140,0.10345898,63965.0,63964.0,0.078132]
[1724541061340,0.10345898,63965.0,63964.0,0.10255852]
[1724541061644,0.10345898,63965.0,63964.0,0.10259852]
[1724541061845,0.10345898,63965.0,63964.0,0.10359852]
[1724541062144,0.10345898,63965.0,63964.0,0.080172]
[1724541062342,0.10345898,63965.0,63964.0,0.10459864]
[1724541065144,0.02532798,63965.0,63964.0,0.10459864]
[1724541065941,0.3608,63967.0,63965.0,0.07813]
[1724541066141,0.02532798,63966.0,63965.0,0.07813]
[1724541067646,0.02532798,63966.0,63965.0,0.07913]
[1724541067847,0.0253285,63966.0,63965.0,0.07913]
[1724541068047,0.0253285,63966.0,63965.0,0.07813]
[1724541068243,0.0253285,63966.0,63965.0,0.08013]
[1724541068640,0.3861285,63966.0,63965.0,0.08013]
[1724541070452,0.0253285,63966.0,63965.0,0.08013]
[1724541070748,0.02532844,63967.0,63966.0,0.078131]
[1724541070949,0.38612857,63967.0,63966.0,0.078131]
[1724541071150,0.02532857,63967.0,63966.0,0.078131]
[1724541071346,0.38612857,63967.0,63966.0,0.078131]
[1724541071655,0.38612857,63967.0,63966.0,0.078171]
[1724541072049,0.38612857,63967.0,63966.0,0.079171]
[1724541072244,0.38612857,63967.0,63966.0,0.080171]
[1724541073948,0.08329251,63967.0,63966.0,0.080171]
[1724541074347,0.44409251,63967.0,63966.0,0.080171]
[1724541076048,0.08329251,63967.0,63966.0,0.080171]
[1724541076351,0.44409251,63967.0,63966.0,0.080171]
[1724541077356,0.38612857,63967.0,63966.0,0.080171]
[1724541080452,0.46425857,63967.0,63966.0,0.080171]